fUSD/lending_fUSD_20250103
["ID","MTS","AMOUNT","RATE_DAILY","PERIOD"]
[347533449,1735905068565,-1085.2,9.808e-05,2]
[347533450,1735905068575,-1719.1,9.808e-05,2]
[347533451,1735905068584,-1059.67,9.808e-05,2]
[347533452,1735905068594,-983.59,9.808e-05,2]
[347533453,1735905068604,-500.0,9.808e-05,2]
[347533454,1735905068614,-500.0,9.808e-05,2]
[347533455,1735905068624,-522.57367766,9.808e-05,2]
[347533456,1735905068634,-1242.31,9.808e-05,2]
[347533457,1735905068644,-578.44,9.808e-05,2]
[347533458,1735905068653,-1069.9,9.808e-05,2]
[347533459,1735905068663,-2360.45,9.808e-05,2]
[347533460,1735905068673,-500.0,9.808e-05,2]
[347533461,1735905068683,-1524.62,9.808e-05,2]
[347533462,1735905068692,-809.15,9.808e-05,2]
[347533463,1735905068702,-541.29,9.808e-05,2]
[347533464,1735905068711,-1192.98,9.808e-05,2]
[347533465,1735905068721,-500.0,9.808e-05,2]
[347533466,1735905068731,-500.0,9.808e-05,2]
[347533467,1735905068740,-669.28,9.808e-05,2]
[347533468,1735905068751,-1030.19,9.808e-05,2]
[347533469,1735905068762,-548.02,9.808e-05,2]
[347533470,1735905068771,-500.0,9.808e-05,2]
[347533471,1735905068781,-500.0,9.808e-05,2]
[347533472,1735905068791,-961.41,9.808e-05,2]
[347533473,1735905068800,-809.16,9.808e-05,2]
[347533474,1735905068810,-1136.56,9.808e-05,2]
[347533475,1735905068819,-305.84,9.808e-05,2]
[347533476,1735905068829,-898.07,9.808e-05,2]
[347533477,1735905068839,-606.66,9.808e-05,2]
[347533478,1735905068848,-502.04,9.808e-05,2]
[347533479,1735905068858,-1141.11,9.808e-05,2]
[347533480,1735905068867,-794.22,9.808e-05,2]
[347533481,1735905068878,-511.36,9.808e-05,2]
[347533482,1735905068888,-743.25,9.808e-05,2]
[347533483,1735905068898,-536.15,9.808e-05,2]
[347533484,1735905068908,-3174.83,9.808e-05,2]
[347533485,1735905068918,-500.0,9.808e-05,2]
[347533486,1735905068927,-1136.09,9.808e-05,2]
[347533487,1735905068937,-1014.14,9.808e-05,2]
[347533488,1735905068947,-1535.48,9.808e-05,2]
[347533489,1735905068957,-500.0,9.808e-05,2]
[347533490,1735905068967,-1600.87,9.808e-05,2]
[347533491,1735905068977,-183.99,9.808e-05,2]
[347533492,1735905068987,-2296.25,9.808e-05,2]
[347533493,1735905068996,-1633.82,9.808e-05,2]
[347533494,1735905069005,-302.55,9.808e-05,2]
[347533495,1735905069017,-1890.84,9.808e-05,2]
[347533496,1735905069026,-500.0,9.808e-05,2]
[347533497,1735905069036,-790.71,9.808e-05,2]
[347533498,1735905069045,-500.0,9.808e-05,2]
[347533499,1735905069055,-3401.53,9.808e-05,2]
[347533500,1735905069065,-574.6,9.808e-05,2]
[347533501,1735905069074,-2724.04,9.808e-05,2]
[347533502,1735905069084,-1377.08,9.808e-05,2]
[347533503,1735905069094,-1201.48,9.808e-05,2]
[347533504,1735905069103,-687.51,9.808e-05,2]
[347533505,1735905069112,-1530.27,9.808e-05,2]
[347533506,1735905069122,-815.31,9.808e-05,2]
[347533507,1735905069131,-552.24,9.808e-05,2]
[347533508,1735905069140,-1062.24,9.808e-05,2]
[347533509,1735905069150,-2705.9,9.808e-05,2]
[347533510,1735905069159,-1089.02,9.808e-05,2]
[347533511,1735905069169,-345.0,9.808e-05,2]
[347533512,1735905069179,-900.41,9.808e-05,2]
[347533513,1735905069188,-512.87,9.808e-05,2]
[347533514,1735905069198,-809.39,9.808e-05,2]
[347533515,1735905069207,-500.0,9.808e-05,2]
[347533516,1735905069216,-624.92,9.808e-05,2]
[347533517,1735905069226,-500.0,9.808e-05,2]
[347533518,1735905069235,-1697.57,9.808e-05,2]
[347533519,1735905069244,-1406.86,9.808e-05,2]
[347533520,1735905069256,-1445.48,9.808e-05,2]
[347533521,1735905069270,-818.71,9.808e-05,2]
[347533522,1735905069280,-500.0,9.808e-05,2]
[347533523,1735905069289,-1607.88,9.808e-05,2]
[347533524,1735905069299,-746.95,9.808e-05,2]
[347533525,1735905069313,-848.07,9.808e-05,2]
[347533526,1735905069322,-2199.69,9.808e-05,2]
[347533527,1735905069332,-944.93,9.808e-05,2]
[347533528,1735905069342,-3264.07,9.808e-05,2]
[347533529,1735905069353,-1278.63,9.808e-05,2]
[347533530,1735905069363,-500.0,9.808e-05,2]
[347533531,1735905069373,-1536.3,9.808e-05,2]
[347533532,1735905069383,-1468.96,9.808e-05,2]
[347533533,1735905069393,-479.37,9.808e-05,2]
[347533534,1735905069402,-500.0,9.808e-05,2]
[347533535,1735905069412,-500.0,9.808e-05,2]
[347533536,1735905069422,-344.07,9.808e-05,2]
[347533537,1735905069434,-670.94,9.808e-05,2]
[347533538,1735905069444,-2530.56,9.808e-05,2]
[347533539,1735905069454,-858.59,9.808e-05,2]
[347533540,1735905069464,-1698.46,9.808e-05,2]
[347533541,1735905069473,-1194.68,9.808e-05,2]
[347533542,1735905069484,-387.18,9.808e-05,2]
[347533543,1735905069493,-500.0,9.808e-05,2]
[347533544,1735905069502,-500.0,9.808e-05,2]
[347533545,1735905069515,-560.77,9.808e-05,2]
[347533546,1735905069524,-652.66,9.808e-05,2]
[347533547,1735905069534,-502.24,9.808e-05,2]
[347533548,1735905069543,-1145.7,9.808e-05,2]
[347533549,1735905069554,-4617.13,9.808e-05,2]
[347533550,1735905069563,-598.97,9.808e-05,2]
[347533551,1735905069572,-812.62,9.808e-05,2]
[347533552,1735905069581,-3544.79,9.808e-05,2]
[347533553,1735905069590,-870.08,9.808e-05,2]
[347533554,1735905069599,-500.0,9.808e-05,2]
[347533555,1735905069609,-262.17,9.808e-05,2]
[347533556,1735905069618,-500.0,9.808e-05,2]
[347533557,1735905069628,-500.0,9.808e-05,2]
[347533558,1735905069637,-500.0,9.808e-05,2]
[347533559,1735905069646,-1204.78,9.808e-05,2]
[347533560,1735905069656,-5179.38,9.808e-05,2]
[347533561,1735905069665,-6451.39,9.808e-05,2]
[347533562,1735905069674,-659.1,9.808e-05,2]
[347533563,1735905069683,-500.0,9.808e-05,2]
[347533564,1735905069692,-500.0,9.809e-05,2]
[347533565,1735905069701,-500.0,9.809e-05,2]
[347533566,1735905069711,-500.0,9.809e-05,2]
[347533567,1735905069720,-500.0,9.809e-05,2]
[347533568,1735905069729,-500.0,9.809e-05,2]
[347533569,1735905069739,-548.18,9.809e-05,2]
[347533570,1735905069750,-500.0,9.809e-05,2]
[347533571,1735905069760,-500.0,9.809e-05,2]
[347533572,1735905069769,-500.0,9.809e-05,2]
[347533573,1735905069779,-667.35,9.809e-05,2]
[347533574,1735905069788,-500.0,9.809e-05,2]
[347533575,1735905069799,-659.32,9.809e-05,2]
[347533576,1735905069809,-500.0,9.809e-05,2]
[347533577,1735905069819,-745.52,9.809e-05,2]
[347533578,1735905069829,-500.0,9.809e-05,2]
[347533579,1735905069839,-662.37,9.809e-05,2]
[347533580,1735905069848,-500.0,9.809e-05,2]
[347533581,1735905069858,-500.0,9.809e-05,2]
[347533582,1735905069868,-500.0,9.809e-05,2]
[347533583,1735905069878,-599.99,9.809e-05,2]
[347533584,1735905069889,-508.14,9.809e-05,2]
[347533585,1735905069899,-657.61,9.809e-05,2]
[347533586,1735905069909,-500.0,9.809e-05,2]
[347533587,1735905069920,-500.0,9.809e-05,2]
[347533588,1735905069929,-372.11420386,9.809e-05,2]
[347533589,1735905069939,-538.52,9.809e-05,2]
[347533590,1735905069949,-727.58,9.809e-05,2]
[347533591,1735905069958,-544.53,9.809e-05,2]
[347533592,1735905069968,-932.72,9.809e-05,2]
[347533593,1735905069978,-626.35,9.809e-05,2]
[347533594,1735905069988,-500.0,9.809e-05,2]
[347533595,1735905069997,-500.0,9.809e-05,2]
[347533596,1735905070009,-625.8,9.809e-05,2]
[347533597,1735905070018,-500.0,9.809e-05,2]
[347533598,1735905070027,-6387.27,9.809e-05,2]
[347533599,1735905070037,-724.34,9.809e-05,2]
[347533600,1735905070047,-500.0,9.809e-05,2]
[347533601,1735905070056,-2441.57,9.809e-05,2]
[347533602,1735905070065,-656.31,9.809e-05,2]
[347533603,1735905070074,-500.0,9.809e-05,2]
[347533604,1735905070083,-603.3,9.809e-05,2]
[347533605,1735905070093,-612.51,9.809e-05,2]
[347533606,1735905070102,-1072.45,9.809e-05,2]
[347533607,1735905070112,-2625.92,9.809e-05,2]
[347533608,1735905070121,-500.0,9.809e-05,2]
[347533609,1735905070130,-2853.83,9.809e-05,2]
[347533610,1735905070140,-500.0,9.809e-05,2]
[347533611,1735905070149,-724.26,9.809e-05,2]
[347533612,1735905070159,-153.82,9.809e-05,2]
[347533613,1735905070168,-612.23,9.809e-05,2]
[347533614,1735905070178,-963.12,9.809e-05,2]
[347533615,1735905070187,-1236.86,9.809e-05,2]
[347533616,1735905070197,-500.0,9.809e-05,2]
[347533617,1735905070206,-638.29,9.809e-05,2]
[347533618,1735905070216,-500.0,9.809e-05,2]
[347533619,1735905070225,-3108.79,9.809e-05,2]
[347533620,1735905070234,-1457.26,9.809e-05,2]
[347533621,1735905070244,-4232.15,9.809e-05,2]
[347533622,1735905070254,-500.0,9.809e-05,2]
[347533623,1735905070267,-500.0,9.809e-05,2]
[347533624,1735905070277,-2176.07,9.809e-05,2]
[347533625,1735905070287,-1547.35,9.809e-05,2]
[347533626,1735905070296,-511.57,9.809e-05,2]
[347533627,1735905070308,-2000.52,9.809e-05,2]
[347533628,1735905070318,-4008.68,9.809e-05,2]
[347533629,1735905070327,-2183.1,9.809e-05,2]
[347533630,1735905070337,-8157.96,9.809e-05,2]
[347533631,1735905070347,-5100.27,9.809e-05,2]
[347533632,1735905070356,-6239.58,9.809e-05,2]
[347533633,1735905070366,-7669.36,9.809e-05,2]
[347533634,1735905070655,-2697.6,9.809e-05,2]
[347533635,1735905070681,-5087.72,9.809e-05,2]
[347533636,1735905070691,-2588.56,9.809e-05,2]
[347533637,1735905070701,-914.32,9.809e-05,2]
[347533638,1735905070711,-963.91,9.809e-05,2]
[347533639,1735905070720,-1466.89,9.809e-05,2]
[347533640,1735905070729,-1249.2,9.809e-05,2]
[347533641,1735905070739,-2475.57,9.809e-05,2]
[347533642,1735905070748,-7308.25,9.809e-05,2]
[347533643,1735905070759,-5613.04,9.809e-05,2]
[347533644,1735905070769,-3686.11,9.809e-05,2]
[347533645,1735905070778,-2187.21,9.809e-05,2]
[347533646,1735905070788,-500.0,9.862e-05,2]
[347533647,1735905070797,-1800.0,9.862e-05,2]
[347533648,1735905070807,-700.0,9.862e-05,2]
[347533649,1735905070817,-150.0,9.887e-05,2]
[347533650,1735905070826,-1800.0,9.9e-05,3]
[347533651,1735905070836,-1263.3,9.913e-05,2]
[347533652,1735905070846,-178.07169,9.913e-05,2]
[347533653,1735905070856,-150.0,9.971e-05,2]
[347533654,1735905070865,-2170.79232583,9.983e-05,2]
[347533655,1735905070876,-500.0,0.0001,2]
[347533656,1735905070886,-2300.0,0.0001,3]
[347533657,1735905070896,-150.0,0.0001,2]
[347533658,1735905070905,-10000.0,0.0001,2]
[347533659,1735905070915,-990.44403302,0.00010028,2]
[347533660,1735905070924,-151.0,0.00010035,2]
[347533661,1735905070934,-150.0,0.00010055,2]
[347533662,1735905070943,-150.0,0.00010055,2]
[347533663,1735905070952,-150.0,0.00010055,2]
[347533664,1735905070962,-150.0,0.00010055,2]
[347533665,1735905070971,-1200.02982844,0.0001008,2]
[347533666,1735905071474,-372.15017156,0.0001008,2]
[347533667,1735905071484,-1238.78,0.0001008,2]
[347533668,1735905071494,-1045.22,0.0001008,2]
[347533669,1735905071503,-2202.10984915,0.0001008,2]
[347533670,1735905071518,-700.58015085,0.0001008,2]
[347533671,1735905071527,-262.61736915,0.0001008,2]
[347533672,1735905071539,-237.38263085,0.0001008,2]
[347533673,1735905071549,-2241.16,0.0001008,2]
[347533674,1735905071559,-173.66631649,0.0001008,2]
[347533675,1735905071586,-599.1,9.259e-05,2]
[347533676,1735905071595,-155.79896129,0.0001008,2]
[347533677,1735905071607,-305.76781107,0.0001008,2]
[347533678,1735905071618,-622.27691115,0.0001008,2]
[347533679,1735905071628,-2799.09,0.0001008,2]
[347533680,1735905071637,-5716.7,0.0001008,2]
[347533681,1735905071647,-3371.76,0.0001008,2]
[347533682,1735905071656,-2026.89,0.0001008,2]
[347533683,1735905071666,-2462.966259,0.0001008,2]
[347533684,1735905071675,-709.51512706,0.0001008,2]
[347533685,1735905071687,-2368.79566893,0.0001008,2]
[347533686,1735905071699,-3808.65920401,0.0001008,2]
[347533687,1735905071708,-572.59607196,0.0001008,2]
[347533688,1735905071727,-2775.22392804,0.0001008,2]
[347533689,1735905071737,-2504.290482,0.0001008,2]
[347533690,1735905071746,-1591.88,0.0001008,2]
[347533691,1735905071756,-2556.56,0.0001008,2]
[347533692,1735905071767,-841.72,0.0001008,2]
[347533693,1735905071777,-158.807715,0.0001008,2]
[347533694,1735905071786,-6521.31,0.0001008,2]
[347533695,1735905071796,-2473.72,0.0001008,2]
[347533696,1735905071806,-3947.86,0.0001008,2]
[347533697,1735905071815,-1141.7,0.0001008,2]
[347533698,1735905071825,-2767.2,0.0001008,2]
[347533699,1735905071834,-2921.51,0.0001008,2]
[347533700,1735905071844,-4005.05,0.0001008,2]
[347533701,1735905071853,-2328.37,0.0001008,2]
[347533702,1735905071863,-5514.99,0.0001008,2]
[347533703,1735905071873,-759.07,0.0001008,2]
[347533704,1735905071883,-3732.91,0.0001008,2]
[347533705,1735905071894,-3765.97,0.0001008,2]
[347533706,1735905071903,-6072.5,0.0001008,2]
[347533707,1735905071913,-10453.95,0.0001008,2]
[347533708,1735905071923,-2970.38,0.0001008,2]
[347533709,1735905071933,-886.53,0.0001008,2]
[347533710,1735905071942,-8562.83,0.0001008,2]
[347533711,1735905071952,-3453.22,0.0001008,2]
[347533712,1735905071961,-523.93,0.0001008,2]
[347533713,1735905071970,-1498.51,0.0001008,2]
[347533714,1735905071980,-901.5,0.0001008,2]
[347533715,1735905071989,-500.0,0.0001008,2]
[347533716,1735905071998,-565.2,0.0001008,2]
[347533717,1735905072011,-500.0,0.0001008,2]
[347533718,1735905072020,-500.0,0.00010081,2]
[347533719,1735905072030,-615.15,0.00010081,2]
[347533720,1735905072039,-500.0,0.00010081,2]
[347533721,1735905072048,-500.0,0.00010081,2]
[347533722,1735905072058,-626.4340361,0.00010081,2]
[347533723,1735905072067,-827.89,0.00010081,2]
[347533724,1735905072077,-580.61,0.00010081,2]
[347533725,1735905072086,-512.24,0.00010081,2]
[347533726,1735905072096,-500.0,0.00010081,2]
[347533727,1735905072105,-673.25,0.00010081,2]
[347533728,1735905072115,-500.0,0.00010081,2]
[347533729,1735905072124,-500.0,0.00010081,2]
[347533730,1735905072134,-500.0,0.00010081,2]
[347533731,1735905072144,-778.45,0.00010081,2]
[347533732,1735905072153,-500.0,0.00010081,2]
[347533733,1735905072163,-586.2,0.00010081,2]
[347533734,1735905072172,-1181.02,0.00010081,2]
[347533735,1735905072182,-500.0,0.00010081,2]
[347533736,1735905072191,-500.0,0.00010081,2]
[347533737,1735905072200,-1092.98,0.00010081,2]
[347533738,1735905072210,-500.0,0.00010081,2]
[347533739,1735905072220,-500.0,0.00010081,2]
[347533740,1735905072229,-500.0,0.00010081,2]
[347533741,1735905072239,-705.4,0.00010081,2]
[347533742,1735905072248,-1451.9,0.00010081,2]
[347533743,1735905072261,-1058.02,0.00010081,2]
[347533744,1735905072270,-1119.68,0.00010081,2]
[347533745,1735905072279,-1408.28,0.00010081,2]
[347533746,1735905072288,-1153.1,0.00010081,2]
[347533747,1735905072299,-941.5,0.00010081,2]
[347533748,1735905072308,-889.02,0.00010081,2]
[347533749,1735905072317,-1037.1,0.00010081,2]
[347533750,1735905072327,-697.9,0.00010081,2]
[347533751,1735905072339,-500.0,0.00010081,2]
[347533752,1735905072348,-500.0,0.00010081,2]
[347533753,1735905072358,-500.0,0.00010081,2]
[347533754,1735905072368,-722.95,0.00010081,2]
[347533755,1735905072377,-595.42,0.00010081,2]
[347533756,1735905072387,-717.92,0.00010081,2]
[347533757,1735905072396,-500.0,0.00010081,2]
[347533758,1735905072406,-500.0,0.00010081,2]
[347533759,1735905072416,-1228.8,0.00010081,2]
[347533760,1735905072426,-500.0,0.00010081,2]
[347533761,1735905072435,-1034.58,0.00010081,2]
[347533762,1735905072445,-572.7,0.00010081,2]
[347533763,1735905072454,-528.65,0.00010081,2]
[347533764,1735905072464,-500.62,0.00010081,2]
[347533765,1735905072473,-842.73,0.00010081,2]
[347533766,1735905072483,-520.8,0.00010081,2]
[347533767,1735905072492,-1367.71,0.00010081,2]
[347533768,1735905072502,-1049.73,0.00010081,2]
[347533769,1735905072511,-500.0,0.00010081,2]
[347533770,1735905072520,-1255.86,0.00010081,2]
[347533771,1735905072530,-500.0,0.00010081,2]
[347533772,1735905072541,-500.0,0.00010081,2]
[347533773,1735905072550,-500.0,0.00010081,2]
[347533774,1735905072560,-500.0,0.00010081,2]
[347533775,1735905072569,-500.0,0.00010081,2]
[347533776,1735905072579,-500.0,0.00010081,2]
[347533777,1735905072589,-509.92,0.00010081,2]
[347533778,1735905072598,-558.07,0.00010081,2]
[347533779,1735905072608,-500.0,0.00010081,2]
[347533780,1735905072618,-500.0,0.00010081,2]
[347533781,1735905072628,-500.0,0.00010081,2]
[347533782,1735905072637,-500.0,0.00010081,2]
[347533783,1735905072647,-500.0,0.00010081,2]
[347533784,1735905072656,-500.0,0.00010081,2]
[347533785,1735905072665,-1431.51,0.00010081,2]
[347533786,1735905072674,-1133.96,0.00010081,2]
[347533787,1735905072684,-785.88,0.00010081,2]
[347533788,1735905072694,-504.9,0.00010081,2]
[347533789,1735905072703,-500.0,0.00010081,2]
[347533790,1735905072713,-500.0,0.00010081,2]
[347533791,1735905072723,-500.0,0.00010081,2]
[347533792,1735905072733,-737.37,0.00010081,2]
[347533793,1735905072743,-1425.68,0.00010081,2]
[347533794,1735905072828,-500.0,0.00010081,2]
[347533795,1735905072839,-500.0,0.00010081,2]
[347533796,1735905072848,-732.36,0.00010081,2]
[347533797,1735905072857,-620.53,0.00010081,2]
[347533798,1735905072866,-754.58,0.00010081,2]
[347533799,1735905072876,-2999.23,0.00010081,2]
[347533800,1735905072885,-1531.82,0.00010081,2]
[347533801,1735905072894,-611.72,0.00010081,2]
[347533802,1735905072904,-333.69,0.00010081,2]
[347533803,1735905072914,-500.0,0.00010081,2]
[347533804,1735905072924,-852.64,0.00010081,2]
[347533805,1735905072933,-500.0,0.00010081,2]
[347533806,1735905072942,-500.0,0.00010081,2]
[347533807,1735905072952,-575.7,0.00010081,2]
[347533808,1735905072961,-500.0,0.00010081,2]
[347533809,1735905072971,-1088.05,0.00010081,2]
[347533810,1735905072980,-500.0,0.00010081,2]
[347533811,1735905072989,-685.93,0.00010081,2]
[347533812,1735905072998,-442.46,0.00010081,2]
[347533813,1735905073007,-500.0,0.00010081,2]
[347533814,1735905073018,-500.0,0.00010081,2]
[347533815,1735905073027,-500.0,0.00010081,2]
[347533816,1735905073036,-505.48,0.00010081,2]
[347533817,1735905073045,-500.0,0.00010081,2]
[347533818,1735905073054,-669.94,0.00010081,2]
[347533819,1735905073063,-500.0,0.00010081,2]
[347533820,1735905073072,-500.0,0.00010081,2]
[347533821,1735905073081,-568.23,0.00010081,2]
[347533822,1735905073090,-500.0,0.00010081,2]
[347533823,1735905073099,-1439.98,0.00010081,2]
[347533824,1735905073108,-525.09,0.00010081,2]
[347533825,1735905073118,-500.0,0.00010081,2]
[347533826,1735905073127,-500.0,0.00010081,2]
[347533827,1735905073136,-500.0,0.00010081,2]
[347533828,1735905073145,-500.0,0.00010081,2]
[347533829,1735905073155,-656.99,0.00010081,2]
[347533830,1735905073165,-577.33,0.00010081,2]
[347533831,1735905073174,-1033.47,0.00010081,2]
[347533832,1735905073183,-1430.89,0.00010081,2]
[347533833,1735905073192,-811.19,0.00010081,2]
[347533834,1735905073201,-500.0,0.00010081,2]
[347533835,1735905073211,-594.45,0.00010081,2]
[347533836,1735905073222,-500.0,0.00010081,2]
[347533837,1735905073232,-613.98,0.00010081,2]
[347533838,1735905073242,-862.41,0.00010081,2]
[347533839,1735905073251,-500.0,0.00010081,2]
[347533840,1735905073267,-500.0,0.00010081,2]
[347533841,1735905073276,-674.72,0.00010081,2]
[347533842,1735905073286,-637.32,0.00010081,2]
[347533843,1735905073296,-927.07,0.00010081,2]
[347533844,1735905073307,-500.0,0.00010081,2]
[347533845,1735905073316,-500.0,0.00010081,2]
[347533846,1735905073325,-500.0,0.00010081,2]
[347533847,1735905073335,-500.0,0.00010081,2]
[347533848,1735905073345,-822.81,0.00010081,2]
[347533849,1735905073354,-500.0,0.00010081,2]
[347533850,1735905073363,-604.94,0.00010081,2]
[347533851,1735905073372,-500.0,0.00010081,2]
[347533852,1735905073381,-500.0,0.00010081,2]
[347533853,1735905073390,-1035.84,0.00010081,2]
[347533854,1735905073399,-3770.84,0.00010081,2]
[347533855,1735905073409,-500.0,0.00010081,2]
[347533856,1735905073418,-500.0,0.00010081,2]
[347533857,1735905073428,-500.0,0.00010081,2]
[347533858,1735905073437,-665.81,0.00010081,2]
[347533859,1735905073447,-1299.36,0.00010081,2]
[347533860,1735905073458,-825.65,0.00010081,2]
[347533861,1735905073467,-872.68,0.00010081,2]
[347533862,1735905073476,-520.28552455,0.00010081,2]
[347533863,1735905073486,-500.0,0.00010081,2]
[347533864,1735905073495,-814.58,0.00010081,2]
[347533865,1735905073504,-3892.95,0.00010081,2]
[347533866,1735905073516,-500.0,0.00010081,2]
[347533867,1735905073525,-500.0,0.00010081,2]
[347533868,1735905073534,-500.0,0.00010081,2]
[347533869,1735905073543,-8705.47,0.00010081,2]
[347533870,1735905073552,-755.9,0.00010081,2]
[347533871,1735905073562,-500.0,0.00010081,2]
[347533872,1735905073571,-849.32,0.00010081,2]
[347533873,1735905073580,-1681.54,0.00010081,2]
[347533874,1735905073590,-500.0,0.00010081,2]
[347533875,1735905073599,-1722.88,0.00010081,2]
[347533876,1735905073609,-500.0,0.00010081,2]
[347533877,1735905073619,-500.0,0.00010081,2]
[347533878,1735905073628,-542.77,0.00010081,2]
[347533879,1735905073638,-500.0,0.00010081,2]
[347533880,1735905073647,-1980.49,0.00010081,2]
[347533881,1735905073657,-1498.56,0.00010081,2]
[347533882,1735905073666,-1722.4,0.00010081,2]
[347533883,1735905073676,-541.03,0.00010081,2]
[347533884,1735905073685,-500.0,0.00010081,2]
[347533885,1735905073694,-609.41,0.00010081,2]
[347533886,1735905073704,-500.0,0.00010081,2]
[347533887,1735905073714,-1160.85,0.00010081,2]
[347533888,1735905073723,-896.11,0.00010081,2]
[347533889,1735905073732,-500.0,0.00010081,2]
[347533890,1735905073741,-3387.6,0.00010081,2]
[347533891,1735905073750,-869.04,0.00010081,2]
[347533892,1735905073759,-500.0,0.00010081,2]
[347533893,1735905073772,-500.0,0.00010081,2]
[347533894,1735905073783,-1251.63,0.00010081,2]
[347533895,1735905073793,-764.46,0.00010081,2]
[347533896,1735905073802,-500.0,0.00010081,2]
[347533897,1735905073811,-923.83,0.00010081,2]
[347533898,1735905073820,-3209.31,0.00010081,2]
[347533899,1735905073829,-1744.31,0.00010081,2]
[347533900,1735905073838,-500.0,0.00010081,2]
[347533901,1735905073848,-604.22,0.00010081,2]
[347533902,1735905073857,-869.17,0.00010081,2]
[347533903,1735905073866,-500.0,0.00010081,2]
[347533904,1735905073875,-3921.68,0.00010081,2]
[347533905,1735905073884,-500.0,0.00010081,2]
[347533906,1735905073894,-3954.77,0.00010081,2]
[347533907,1735905073903,-1229.97,0.00010081,2]
[347533908,1735905073913,-500.0,0.00010081,2]
[347533909,1735905073922,-967.0,0.00010081,2]
[347533910,1735905073932,-7839.58,0.00010081,2]
[347533911,1735905073941,-539.43,0.00010081,2]
[347533912,1735905073951,-500.0,0.00010081,2]
[347533913,1735905073961,-1218.48,0.00010081,2]
[347533914,1735905073970,-2501.7,0.00010081,2]
[347533915,1735905073980,-500.0,0.00010081,2]
[347533916,1735905073989,-5609.49,0.00010081,2]
[347533917,1735905073999,-500.0,0.00010081,2]
[347533918,1735905074008,-500.0,0.00010081,2]
[347533919,1735905074017,-500.0,0.00010081,2]
[347533920,1735905074027,-500.0,0.00010081,2]
[347533921,1735905074036,-618.39,0.00010081,2]
[347533922,1735905074045,-1344.92,0.00010081,2]
[347533923,1735905074054,-8283.61,0.00010081,2]
[347533924,1735905074064,-592.31,0.00010081,2]
[347533925,1735905074073,-1093.28,0.00010081,2]
[347533926,1735905074082,-500.0,0.00010081,2]
[347533927,1735905074091,-1196.01,0.00010081,2]
[347533928,1735905074100,-500.0,0.00010081,2]
[347533929,1735905074110,-500.0,0.00010081,2]
[347533930,1735905074120,-544.71,0.00010081,2]
[347533931,1735905074130,-1072.89,0.00010081,2]
[347533932,1735905074140,-3920.37,0.00010081,2]
[347533933,1735905074149,-500.0,0.00010081,2]
[347533934,1735905074158,-2410.46,0.00010081,2]
[347533935,1735905074167,-1151.84,0.00010081,2]
[347533936,1735905074175,-500.0,0.00010081,2]
[347533937,1735905074184,-11066.11,0.00010081,2]
[347533938,1735905074194,-500.0,0.00010081,2]
[347533939,1735905074203,-1217.73,0.00010081,2]
[347533940,1735905074212,-500.0,0.00010081,2]
[347533941,1735905074222,-1797.6,0.00010081,2]
[347533942,1735905074231,-500.0,0.00010081,2]
[347533943,1735905074240,-1944.42,0.00010081,2]
[347533944,1735905074249,-500.0,0.00010081,2]
[347533945,1735905074259,-500.0,0.00010082,2]
[347533946,1735905074270,-500.0,0.00010082,2]
[347533947,1735905074279,-1191.78,0.00010082,2]
[347533948,1735905074288,-500.0,0.00010082,2]